Workbook

Sheet 目录
A1: 目录
A3: 附表3-1 | B3: 部门预算收支总表
A4: 附表3-2 | B4: 部门预算收入总表
A5: 附表3-3 | B5: 部门预算支出总表
A6: 附表3-4 | B6: 部门预算财政拨款收支总表
A7: 附表3-5 | B7: 部门预算一般公共预算财政拨款支出表
A8: 附表3-6 | B8: 部门预算一般公共预算财政拨款基本支出表
A9: 附表3-7 | B9: 部门预算政府性基金预算财政拨款支出表
A10: 附表3-8 | B10: 部门预算国有资本经营预算财政拨款支出表
A11: 附表3-9 | B11: 部门预算财政拨款“三公”经费支出表

Sheet 附表3-1
A1: 部门预算收支总表
A2: 部门编码及名称：[105]城建局 | D2: 预算年度：2021 | E2: 金额单位：万元
A3: 序号 | B3: 收入 | D3: 支出
B4: 项 目 | C4: 预算数 | D4: 项 目 | E4: 预算数
A5: 栏次 | B5: 1 | C5: 2 | D5: 3 | E5: 4
A6: =ROW() -> 6 | B6: 一、财政拨款收入 | C6: 168317.51 | D6: 一、一般公共服务支出 | E6: 524.30
A7: 7 | B7: 1.一般公共预算拨款 | C7: 8208.69 | D7: 二、外交支出 | E7: 0.00
A8: 8 | B8: 其中：财政拨款 | C8: 0.00 | D8: 三、国防支出 | E8: 0.00
A9: 9 | B9: 上级财政提前通知转移支付 | C9: 1740.50 | D9: 四、公共安全支出 | E9: 0.00
A10: 10 | B10: 2.基金预算拨款 | C10: 160108.82 | D10: 五、教育支出 | E10: 0.00
A11: 11 | B11: 二、上级拨款收入 | C11: 0.00 | D11: 六、科学技术支出 | E11: 0.00
A12: 12 | B12: 三、事业收入 | C12: 0.00 | D12: 七、文化旅游体育与传媒支出 | E12: 0.00
A13: 13 | B13: 其中：财政专户收入 | C13: 0.00 | D13: 八、社会保障和就业支出 | E13: 236.71
A14: 14 | B14: 四、经营收入 | C14: 0.00 | D14: 九、社会保险基金支出 | E14: 0.00
A15: 15 | B15: 五、附属单位上缴收入 | C15: 0.00 | D15: 十、卫生健康支出 | E15: 61.09
A16: 16 | B16: 六、其他收入 | C16: 0.00 | D16: 十一、节能环保支出 | E16: 2203.70
A17: 17 | D17: 十二、城乡社区支出 | E17: 165005.12
A18: 18 | D18: 十三、农林水支出 | E18: 50.00
A19: 19 | D19: 十四、交通运输支出 | E19: 188.47
A20: 20 | D20: 十五、资源勘探工业信息等支出 | E20: 0.00
A21: 21 | D21: 十六、商业服务业等支出 | E21: 0.00
A22: 22 | D22: 十七、金融支出 | E22: 0.00
A23: 23 | D23: 十八、援助其他地区支出 | E23: 0.00
A24: 24 | D24: 十九、自然资源海洋气象等支出 | E24: 0.00
A25: 25 | D25: 二十、住房保障支出 | E25: 48.12
A26: 26 | D26: 二十一、粮油物资储备支出 | E26: 0.00
A27: 27 | D27: 二十二、国有资本经营预算支出 | E27: 0.00
A28: 28 | D28: 二十三、灾害防治及应急管理支出 | E28: 0.00
A29: 29 | D29: 二十四、预备费 | E29: 0.00
A30: 30 | D30: 二十五、其他支出 | E30: 0.00
A31: 31 | D31: 二十六、转移性支出 | E31: 0.00
A32: 32 | D32: 二十七、债务还本支出 | E32: 0.00
A33: 33 | D33: 二十八、债务付息支出 | E33: 0.00
A34: 34 | D34: 二十九、债务发行费用支出 | E34: 0.00
A35: 35 | B35: 本年收入合计 | C35: 168317.51 | D35: 本年支出合计 | E35: 168317.51
A36: 36 | B36: 用事业基金弥补收支差额 | C36: 0.00 | D36: 结余分配 | E36: 0.00
A37: 37 | B37: 年初结转和结余 | C37: 0.00 | D37: 年末结转和结余 | E37: 0.00
A38: 38 | B38: 合计 | C38: 168317.51 | D38: 合计 | E38: 168317.51

Sheet 附表3-2
A1: 部门预算收入总表
A2: 部门编码及名称：[105]城建局 | H2: 预算年度：2021 | J2: 金额单位：万元
A3: 序号 | B3: 科目 | D3: 本年收入合计 | E3: 财政拨款收入 | F3: 上级补助收入 | G3: 事业收入 | I3: 经营收入 | J3: 附属单位上缴收入 | K3: 其他收入
B4: 功能分类科目编码 | C4: 科目名称 | G4: 小计 | H4: 其中：财政专户收入
A5: 栏次 | B5: 1 | C5: 2 | D5: 3 | E5: 4 | F5: 5 | G5: 6 | H5: 7 | I5: 8 | J5: 9 | K5: 10
A6: =ROW() -> 6 | C6: 合计 | D6: 168317.51 | E6: 168317.51 | F6: 0.00 | G6: 0.00 | H6: 0.00 | I6: 0.00 | J6: 0.00 | K6: 0.00
A7: 7 | B7: 201 | C7: 一般公共服务支出 | D7: =D8 -> 524.30 | E7: 524.30 | F7: 0.00 | G7: 0.00 | H7: 0.00 | I7: 0.00 | J7: 0.00 | K7: 0.00
A8: 8 | B8: 20103 | C8: 政府办公厅（室）及相关机构事务 | D8: =D9 -> 524.30 | E8: 524.30 | F8: 0.00 | G8: 0.00 | H8: 0.00 | I8: 0.00 | J8: 0.00 | K8: 0.00
A9: 9 | B9: 2010302 | C9: 一般行政管理事务 | D9: =E9+F9 -> 524.30 | E9: 524.30 | F9: 0.00 | G9: 0.00 | H9: 0.00 | I9: 0.00 | J9: 0.00 | K9: 0.00
A10: 10 | B10: 208 | C10: 社会保障和就业支出 | D10: =D11+D15 -> 236.71 | E10: 236.71 | F10: 0.00 | G10: 0.00 | H10: 0.00 | I10: 0.00 | J10: 0.00 | K10: 0.00
A11: 11 | B11: 20805 | C11: 行政事业单位养老支出 | D11: =D12+D13+D14 -> 101.99 | E11: 101.99 | F11: 0.00 | G11: 0.00 | H11: 0.00 | I11: 0.00 | J11: 0.00 | K11: 0.00
A12: 12 | B12: 2080502 | C12: 事业单位离退休 | D12: 5.73 | E12: 5.73 | F12: 0.00 | G12: 0.00 | H12: 0.00 | I12: 0.00 | J12: 0.00 | K12: 0.00
A13: 13 | B13: 2080505 | C13: 机关事业单位基本养老保险缴费支出★ | D13: 64.17 | E13: 64.17 | F13: 0.00 | G13: 0.00 | H13: 0.00 | I13: 0.00 | J13: 0.00 | K13: 0.00
A14: 14 | B14: 2080506 | C14: 机关事业单位职业年金缴费支出★ | D14: 32.09 | E14: 32.09 | F14: 0.00 | G14: 0.00 | H14: 0.00 | I14: 0.00 | J14: 0.00 | K14: 0.00
A15: 15 | B15: 20822 | C15: 大中型水库移民后期扶持基金支出 | D15: =D16+D17+D18 -> 134.72 | E15: 134.72 | F15: 0.00 | G15: 0.00 | H15: 0.00 | I15: 0.00 | J15: 0.00 | K15: 0.00
A16: 16 | B16: 2082201 | C16: 移民补助 | D16: =E16+F16 -> 53.76 | E16: 53.76 | F16: 0.00 | G16: 0.00 | H16: 0.00 | I16: 0.00 | J16: 0.00 | K16: 0.00
A17: 17 | B17: 2082202 | C17: 基础设施建设和经济发展 | D17: 30.46 | E17: 30.46 | F17: 0.00 | G17: 0.00 | H17: 0.00 | I17: 0.00 | J17: 0.00 | K17: 0.00
A18: 18 | B18: 2082602 | C18: 财政对城乡居民基本养老保险基金的补助 | D18: 50.50 | E18: 50.50 | F18: 0.00 | G18: 0.00 | H18: 0.00 | I18: 0.00 | J18: 0.00 | K18: 0.00
A19: 19 | B19: 210 | C19: 卫生健康支出 | D19: =D20 -> 61.09 | E19: 61.09 | F19: 0.00 | G19: 0.00 | H19: 0.00 | I19: 0.00 | J19: 0.00 | K19: 0.00
A20: 20 | B20: 21011 | C20: 行政事业单位医疗 | D20: =D21+D22 -> 61.09 | E20: 61.09 | F20: 0.00 | G20: 0.00 | H20: 0.00 | I20: 0.00 | J20: 0.00 | K20: 0.00
A21: 21 | B21: 2101101 | C21: 行政单位医疗 | D21: =E21+F21 -> 8.76 | E21: 8.76 | F21: 0.00 | G21: 0.00 | H21: 0.00 | I21: 0.00 | J21: 0.00 | K21: 0.00
A22: 22 | B22: 2101102 | C22: 事业单位医疗 | D22: 52.33 | E22: 52.33 | F22: 0.00 | G22: 0.00 | H22: 0.00 | I22: 0.00 | J22: 0.00 | K22: 0.00
A23: 23 | B23: 211 | C23: 节能环保支出 | D23: 2203.70 | E23: 2203.70 | F23: 0.00 | G23: 0.00 | H23: 0.00 | I23: 0.00 | J23: 0.00 | K23: 0.00
A24: 24 | B24: 21103 | C24: 污染防治 | D24: 2203.70 | E24: 2203.70 | F24: 0.00 | G24: 0.00 | H24: 0.00 | I24: 0.00 | J24: 0.00 | K24: 0.00
A25: 25 | B25: 2110301 | C25: 大气 | D25: 2203.70 | E25: 2203.70 | F25: 0.00 | G25: 0.00 | H25: 0.00 | I25: 0.00 | J25: 0.00 | K25: 0.00
A26: 26 | B26: 212 | C26: 城乡社区支出 | D26: =D27+D32+D34+D36+D38+D44+D46 -> 165005.12 | E26: 165005.12 | F26: 0.00 | G26: 0.00 | H26: 0.00 | I26: 0.00 | J26: 0.00 | K26: 0.00
A27: 27 | B27: 21201 | C27: 城乡社区管理事务 | D27: =D28+D29+D30+D31 -> 2284.02 | E27: 2284.02 | F27: 0.00 | G27: 0.00 | H27: 0.00 | I27: 0.00 | J27: 0.00 | K27: 0.00
A28: 28 | B28: 2120101 | C28: 行政运行 | D28: =E28+F28 -> 483.62 | E28: 483.62 | F28: 0.00 | G28: 0.00 | H28: 0.00 | I28: 0.00 | J28: 0.00 | K28: 0.00
A29: 29 | B29: 2120102 | C29: 一般行政管理事务 | D29: 95.70 | E29: 95.70 | F29: 0.00 | G29: 0.00 | H29: 0.00 | I29: 0.00 | J29: 0.00 | K29: 0.00
A30: 30 | B30: 2120110 | C30: 执业资格注册、资质审查 | D30: 3.50 | E30: 3.50 | F30: 0.00 | G30: 0.00 | H30: 0.00 | I30: 0.00 | J30: 0.00 | K30: 0.00
A31: 31 | B31: 2120199 | C31: 其他城乡社区管理事务支出 | D31: 1701.20 | E31: 1701.20 | F31: 0.00 | G31: 0.00 | H31: 0.00 | I31: 0.00 | J31: 0.00 | K31: 0.00
A32: 32 | B32: 21203 | C32: 城乡社区公共设施 | D32: =D33 -> 0.00 | E32: 0.00 | F32: 0.00 | G32: 0.00 | H32: 0.00 | I32: 0.00 | J32: 0.00 | K32: 0.00
A33: 33 | B33: 2120399 | C33: 其他城乡社区公共设施支出 | D33: =E33+F33 -> 0.00 | E33: 0.00 | F33: 0.00 | G33: 0.00 | H33: 0.00 | I33: 0.00 | J33: 0.00 | K33: 0.00
A34: 34 | B34: 21205 | C34: 城乡社区环境卫生 | D34: 2550.00 | E34: 2550.00 | F34: 0.00 | G34: 0.00 | H34: 0.00 | I34: 0.00 | J34: 0.00 | K34: 0.00
A35: 35 | B35: 2120501 | C35: 城乡社区环境卫生 | D35: =E35+F35 -> 2550.00 | E35: 2550.00 | F35: 0.00 | G35: 0.00 | H35: 0.00 | I35: 0.00 | J35: 0.00 | K35: 0.00
A36: 36 | B36: 21206 | C36: 建设市场管理与监督 | D36: 10.00 | E36: 10.00 | F36: 0.00 | G36: 0.00 | H36: 0.00 | I36: 0.00 | J36: 0.00 | K36: 0.00
A37: 37 | B37: 2120601 | C37: 建设市场管理与监督 | D37: 10.00 | E37: 10.00 | F37: 0.00 | G37: 0.00 | H37: 0.00 | I37: 0.00 | J37: 0.00 | K37: 0.00
A38: 38 | B38: 21208 | C38: 国有土地使用权出让收入安排的支出 | D38: =D39+D40+D41+D42+D43 -> 160024.60 | E38: 160024.60 | F38: 0.00 | G38: 0.00 | H38: 0.00 | I38: 0.00 | J38: 0.00 | K38: 0.00
A39: 39 | B39: 2120801 | C39: 征地和拆迁补偿支出 | D39: 130713.30 | E39: 130713.30 | F39: 0.00 | G39: 0.00 | H39: 0.00 | I39: 0.00 | J39: 0.00 | K39: 0.00
A40: 40 | B40: 2120803 | C40: 城市建设支出 | D40: 15471.00 | E40: 15471.00 | F40: 0.00 | G40: 0.00 | H40: 0.00 | I40: 0.00 | J40: 0.00 | K40: 0.00
A41: 41 | B41: 2120804 | C41: 农村基础设施建设支出 | D41: 961.50 | E41: 961.50 | F41: 0.00 | G41: 0.00 | H41: 0.00 | I41: 0.00 | J41: 0.00 | K41: 0.00
A42: 42 | B42: 2120805 | C42: 绿化租地 | D42: 1022.20 | E42: 1022.20 | F42: 0.00 | G42: 0.00 | H42: 0.00 | I42: 0.00 | J42: 0.00 | K42: 0.00
A43: 43 | B43: 2120899 | C43: 其他国有土地使用权出让收入安排的支出 | D43: 11856.60 | E43: 11856.60 | F43: 0.00 | G43: 0.00 | H43: 0.00 | I43: 0.00 | J43: 0.00 | K43: 0.00
A44: 44 | B44: 21213 | C44: 城市基础设施配套费安排的支出 | D44: =D45 -> 0.00 | E44: 0.00 | F44: 0.00 | G44: 0.00 | H44: 0.00 | I44: 0.00 | J44: 0.00 | K44: 0.00
A45: 45 | B45: 2121302 | C45: 城市环境卫生 | D45: =E45+F45 -> 0.00 | E45: 0.00 | F45: 0.00 | G45: 0.00 | H45: 0.00 | I45: 0.00 | J45: 0.00 | K45: 0.00
A46: 46 | B46: 21299 | C46: 其他城乡社区支出 | D46: 136.50 | E46: 136.50 | F46: 0.00 | G46: 0.00 | H46: 0.00 | I46: 0.00 | J46: 0.00 | K46: 0.00
A47: 47 | B47: 2129999 | C47: 其他城乡社区支出 | D47: 136.50 | E47: 136.50 | F47: 0.00 | G47: 0.00 | H47: 0.00 | I47: 0.00 | J47: 0.00 | K47: 0.00
A48: 48 | B48: 213 | C48: 农林水支出 | D48: 50.00 | E48: 50.00 | F48: 0.00 | G48: 0.00 | H48: 0.00 | I48: 0.00 | J48: 0.00 | K48: 0.00
A49: 49 | B49: 21303 | C49: 水利 | D49: =D50+D51 -> 50.00 | E49: 50.00 | F49: 0.00 | G49: 0.00 | H49: 0.00 | I49: 0.00 | J49: 0.00 | K49: 0.00
A50: 50 | B50: 2130306 | C50: 水利工程运行与维护 | D50: 20.00 | E50: 20.00 | F50: 0.00 | G50: 0.00 | H50: 0.00 | I50: 0.00 | J50: 0.00 | K50: 0.00
A51: =ROW() -> 51 | B51: 2130335 | C51: 农村人畜饮水 | D51: 30.00 | E51: 30.00 | F51: 0.00 | G51: 0.00 | H51: 0.00 | I51: 0.00 | J51: 0.00 | K51: 0.00
A52: 52 | B52: 214 | C52: 交通运输支出 | D52: =D53 -> 188.47 | E52: 188.47 | F52: 0.00 | G52: 0.00 | H52: 0.00 | I52: 0.00 | J52: 0.00 | K52: 0.00
A53: 53 | B53: 21401 | C53: 公路水路运输 | D53: =D54+D55 -> 188.47 | E53: 188.47 | F53: 0.00 | G53: 0.00 | H53: 0.00 | I53: 0.00 | J53: 0.00 | K53: 0.00
A54: 54 | B54: 2140106 | C54: 公路养护 | D54: =E54+F54 -> 0.00 | E54: 0.00 | F54: 0.00 | G54: 0.00 | H54: 0.00 | I54: 0.00 | J54: 0.00 | K54: 0.00
A55: 55 | B55: 2140199 | C55: 其他公路水利运输 | D55: 188.47 | E55: 188.47 | F55: 0.00 | G55: 0.00 | H55: 0.00 | I55: 0.00 | J55: 0.00 | K55: 0.00
A56: 56 | B56: 221 | C56: 住房保障支出 | D56: 48.12 | E56: 48.12 | F56: 0.00 | G56: 0.00 | H56: 0.00 | I56: 0.00 | J56: 0.00 | K56: 0.00
A57: 57 | B57: 22102 | C57: 住房改革支出 | D57: 48.12 | E57: 48.12 | F57: 0.00 | G57: 0.00 | H57: 0.00 | I57: 0.00 | J57: 0.00 | K57: 0.00
A58: 58 | B58: 2210201 | C58: 住房公积金 | D58: =E58+F58 -> 48.12 | E58: 48.12 | F58: 0.00 | G58: 0.00 | H58: 0.00 | I58: 0.00 | J58: 0.00 | K58: 0.00

Sheet 附表3-3
A1: 部门预算支出总表
A2: 部门编码及名称：[105]城建局 | F2: 预算年度：2021 | H2: 金额单位：万元
A3: 序号 | B3: 科目 | D3: 本年支出合计 | E3: 基本支出 | F3: 项目支出 | G3: 上缴上级支出 | H3: 经营支出 | I3: 对附属单位补助支出
B4: 功能分类科目编码 | C4: 科目名称
A5: 栏次 | B5: 1 | C5: 2 | D5: 3 | E5: 4 | F5: 5 | G5: 6 | H5: 7 | I5: 8
A6: =ROW() -> 6 | C6: 合计 | D6: =E6+F6 -> 168317.51 | E6: =E9+E12+E13+E14+E16+E17+E18+E21+E22+E25+E28+E29+E30+E31+E33+E35+E37+E39+E40+E41+E42+E43+E45+E47+E50+E51+E54+E55+E58 -> 883.29 | F6: =F9+F12+F13+F14+F16+F17+F18+F21+F22+F25+F28+F29+F30+F31+F33+F35+F37+F39+F40+F41+F42+F43+F45+F47+F50+F51+F54+F55+F58 -> 167434.22 | G6: 0.00 | H6: 0.00 | I6: 0.00
A7: =ROW() -> 7 | B7: 201 | C7: 一般公共服务支出 | D7: =D8 -> 524.30 | E7: 0.00 | F7: 524.30 | G7: 0.00 | H7: 0.00 | I7: 0.00
A8: 8 | B8: 20103 | C8: 政府办公厅（室）及相关机构事务 | D8: 524.30 | E8: 0.00 | F8: 524.30 | G8: 0.00 | H8: 0.00 | I8: 0.00
A9: 9 | B9: 2010302 | C9: 一般行政管理事务 | D9: =E9+F9 -> 524.30 | E9: 0.00 | F9: 524.30 | G9: 0.00 | H9: 0.00 | I9: 0.00
A10: 10 | B10: 208 | C10: 社会保障和就业支出 | D10: =D11+D15 -> 236.71 | E10: =E11+E15 -> 101.99 | F10: =F11+F15 -> 134.72 | G10: 0.00 | H10: 0.00 | I10: 0.00
A11: 11 | B11: 20805 | C11: 行政事业单位养老支出 | D11: =D12+D13+D14 -> 101.99 | E11: =E12+E13+E14 -> 101.99 | F11: =F12+F13+F14 -> 0.00 | G11: 0.00 | H11: 0.00 | I11: 0.00
A12: 12 | B12: 2080502 | C12: 事业单位离退休 | D12: =E12+F12 -> 5.73 | E12: 5.73 | F12: 0.00 | G12: 0.00 | H12: 0.00 | I12: 0.00
A13: 13 | B13: 2080505 | C13: 机关事业单位基本养老保险缴费支出★ | D13: =E13+F13 -> 64.17 | E13: 64.17 | F13: 0.00 | G13: 0.00 | H13: 0.00 | I13: 0.00
A14: 14 | B14: 2080506 | C14: 机关事业单位职业年金缴费支出★ | D14: =E14+F14 -> 32.09 | E14: 32.09 | F14: 0.00 | G14: 0.00 | H14: 0.00 | I14: 0.00
A15: 15 | B15: 20822 | C15: 大中型水库移民后期扶持基金支出 | D15: =D16+D17+D18 -> 134.72 | E15: =E16+E17+E18 -> 0.00 | F15: =F16+F17+F18 -> 134.72 | G15: 0.00 | H15: 0.00 | I15: 0.00
A16: 16 | B16: 2082201 | C16: 移民补助 | D16: =E16+F16 -> 53.76 | E16: 0.00 | F16: 53.76 | G16: 0.00 | H16: 0.00 | I16: 0.00
A17: =ROW() -> 17 | B17: 2082202 | C17: 基础设施建设和经济发展 | D17: =E17+F17 -> 30.46 | E17: 0.00 | F17: 30.46 | G17: 0.00 | H17: 0.00 | I17: 0.00
A18: 18 | B18: 2082602 | C18: 财政对城乡居民基本养老保险基金的补助 | D18: =E18+F18 -> 50.50 | E18: 0.00 | F18: 50.50
A19: 19 | B19: 210 | C19: 卫生健康支出 | D19: =D20 -> 61.09 | E19: =E20 -> 61.09 | F19: =F20 -> 0.00 | G19: 0.00 | H19: 0.00 | I19: 0.00
A20: 20 | B20: 21011 | C20: 行政事业单位医疗 | D20: =D21+D22 -> 61.09 | E20: =E21+E22 -> 61.09 | F20: =F21+F22 -> 0.00 | G20: 0.00 | H20: 0.00 | I20: 0.00
A21: 21 | B21: 2101101 | C21: 行政单位医疗 | D21: =E21+F21 -> 8.76 | E21: 8.76 | F21: 0.00 | G21: 0.00 | H21: 0.00 | I21: 0.00
A22: 22 | B22: 2101102 | C22: 事业单位医疗 | D22: =E22+F22 -> 52.33 | E22: 52.33 | F22: 0.00 | G22: 0.00 | H22: 0.00 | I22: 0.00
A23: 23 | B23: 211 | C23: 节能环保支出 | D23: =D24 -> 2203.70 | E23: 0.00 | F23: 2203.70 | G23: 0.00 | H23: 0.00 | I23: 0.00
A24: 24 | B24: 21103 | C24: 污染防治 | D24: 2203.70 | E24: 0.00 | F24: 2203.70 | G24: 0.00 | H24: 0.00 | I24: 0.00
A25: 25 | B25: 2110301 | C25: 大气 | D25: =E25+F25 -> 2203.70 | E25: 0.00 | F25: 2203.70 | G25: 0.00 | H25: 0.00 | I25: 0.00
A26: 26 | B26: 212 | C26: 城乡社区支出 | D26: =D27+D32+D34+D36+D38+D44+D46 -> 165005.12 | E26: =E27+E32+E34+E36+E38+E44+E46 -> 483.62 | F26: =F27+F32+F34+F36+F38+F44+F46 -> 164521.50 | G26: 0.00 | H26: 0.00 | I26: 0.00
A27: =ROW() -> 27 | B27: 21201 | C27: 城乡社区管理事务 | D27: =D28+D29+D30+D31 -> 2284.02 | E27: =E28+E29+E30+E31 -> 483.62 | F27: =F28+F29+F30+F31 -> 1800.40 | G27: 0.00 | H27: 0.00 | I27: 0.00
A28: 28 | B28: 2120101 | C28: 行政运行 | D28: =E28+F28 -> 483.62 | E28: 483.62 | F28: 0.00 | G28: 0.00 | H28: 0.00 | I28: 0.00
A29: 29 | B29: 2120102 | C29: 一般行政管理事务 | D29: =E29+F29 -> 95.70 | E29: 0.00 | F29: 95.70 | G29: 0.00 | H29: 0.00 | I29: 0.00
A30: 30 | B30: 2120110 | C30: 执业资格注册、资质审查 | D30: =E30+F30 -> 3.50 | E30: 0.00 | F30: 3.50 | G30: 0.00 | H30: 0.00 | I30: 0.00
A31: 31 | B31: 2120199 | C31: 其他城乡社区管理事务支出 | D31: =E31+F31 -> 1701.20 | E31: 0.00 | F31: 1701.20 | G31: 0.00 | H31: 0.00 | I31: 0.00
A32: 32 | B32: 21203 | C32: 城乡社区公共设施 | D32: =D33 -> 0.00 | E32: =E33 -> 0.00 | F32: =F33 -> 0.00 | G32: 0.00 | H32: 0.00 | I32: 0.00
A33: 33 | B33: 2120399 | C33: 其他城乡社区公共设施支出 | D33: =E33+F33 -> 0.00 | E33: 0.00 | F33: 0.00 | G33: 0.00 | H33: 0.00 | I33: 0.00
A34: 34 | B34: 21205 | C34: 城乡社区环境卫生 | D34: =D35 -> 2550.00 | E34: =E35 -> 0.00 | F34: =F35 -> 2550.00 | G34: 0.00 | H34: 0.00 | I34: 0.00
A35: 35 | B35: 2120501 | C35: 城乡社区环境卫生 | D35: =E35+F35 -> 2550.00 | E35: 0.00 | F35: 2550.00 | G35: 0.00 | H35: 0.00 | I35: 0.00
A36: 36 | B36: 21206 | C36: 建设市场管理与监督 | D36: 10.00 | E36: 0.00 | F36: 10.00
A37: =ROW() -> 37 | B37: 2120601 | C37: 建设市场管理与监督 | D37: 10.00 | E37: 0.00 | F37: 10.00
A38: 38 | B38: 21208 | C38: 国有土地使用权出让收入安排的支出 | D38: =D39+D40+D41+D42+D43 -> 160024.60 | E38: =E39+E40+E41+E42+E43 -> 0.00 | F38: =F39+F40+F41+F42+F43 -> 160024.60 | G38: 0.00 | H38: 0.00 | I38: 0.00
A39: 39 | B39: 2120801 | C39: 征地和拆迁补偿支出 | D39: =E39+F39 -> 130713.30 | E39: 0.00 | F39: 130713.30 | G39: 0.00 | H39: 0.00 | I39: 0.00
A40: 40 | B40: 2120803 | C40: 城市建设支出 | D40: =E40+F40 -> 15471.00 | E40: 0.00 | F40: 15471.00 | G40: 0.00 | H40: 0.00 | I40: 0.00
A41: 41 | B41: 2120804 | C41: 农村基础设施建设支出 | D41: =E41+F41 -> 961.50 | E41: 0.00 | F41: 961.50 | G41: 0.00 | H41: 0.00 | I41: 0.00
A42: 42 | B42: 2120805 | C42: 绿化租地 | D42: =E42+F42 -> 1022.20 | E42: 0.00 | F42: 1022.20
A43: 43 | B43: 2120899 | C43: 其他国有土地使用权出让收入安排的支出 | D43: =E43+F43 -> 11856.60 | E43: 0.00 | F43: 11856.60 | G43: 0.00 | H43: 0.00 | I43: 0.00
A44: 44 | B44: 21213 | C44: 城市基础设施配套费安排的支出 | D44: =D45 -> 0.00 | E44: =E45 -> 0.00 | F44: =F45 -> 0.00 | G44: 0.00 | H44: 0.00 | I44: 0.00
A45: 45 | B45: 2121302 | C45: 城市环境卫生 | D45: =E45+F45 -> 0.00 | E45: 0.00 | F45: 0.00 | G45: 0.00 | H45: 0.00 | I45: 0.00
A46: 46 | B46: 21299 | C46: 其他城乡社区支出 | D46: =D47 -> 136.50 | E46: 0.00 | F46: 136.50
A47: =ROW() -> 47 | B47: 2129999 | C47: 其他城乡社区支出 | D47: 136.50 | E47: =E48 -> 0.00 | F47: 136.50
A48: 48 | B48: 213 | C48: 农林水支出 | D48: =D49 -> 50.00 | E48: =E49 -> 0.00 | F48: =F49 -> 50.00 | G48: 0.00 | H48: 0.00 | I48: 0.00
A49: 49 | B49: 21303 | C49: 水利 | D49: =D50+D51 -> 50.00 | E49: =E50+E51 -> 0.00 | F49: =F50+F51 -> 50.00 | G49: 0.00 | H49: 0.00 | I49: 0.00
A50: 50 | B50: 2130306 | C50: 水利工程运行与维护 | D50: 20.00 | E50: 0.00 | F50: 20.00
A51: 51 | B51: 2130335 | C51: 农村人畜饮水 | D51: 30.00 | E51: 0.00 | F51: 30.00 | G51: 0.00 | H51: 0.00 | I51: 0.00
A52: 52 | B52: 214 | C52: 交通运输支出 | D52: =D53 -> 188.47 | E52: =E53 -> 188.47 | F52: =F53 -> 0.00 | G52: 0.00 | H52: 0.00 | I52: 0.00
A53: 53 | B53: 21401 | C53: 公路水路运输 | D53: =D54+D55 -> 188.47 | E53: =E54+E55 -> 188.47 | F53: =F54+F55 -> 0.00 | G53: 0.00 | H53: 0.00 | I53: 0.00
A54: 54 | B54: 2140106 | C54: 公路养护 | D54: =E54+F54 -> 0.00 | E54: 0.00 | F54: 0.00 | G54: 0.00 | H54: 0.00 | I54: 0.00
A55: 55 | B55: 2140199 | C55: 其他公路水利运输 | D55: 188.47 | E55: 188.47 | F55: 0.00
A56: 56 | B56: 221 | C56: 住房保障支出 | D56: =D57 -> 48.12 | E56: 48.12 | F56: 0.00 | G56: 0.00 | H56: 0.00 | I56: 0.00
A57: 57 | B57: 22102 | C57: 住房改革支出 | D57: 48.12 | E57: 48.12 | F57: 0.00 | G57: 0.00 | H57: 0.00 | I57: 0.00
A58: 58 | B58: 2210201 | C58: 住房公积金 | D58: =E58+F58 -> 48.12 | E58: 48.12 | F58: 0.00 | G58: 0.00 | H58: 0.00 | I58: 0.00

Sheet 附表3-4
A1: 部门预算财政拨款收支总表
A2: 部门编码及名称：[105]城建局 | E2: 预算年度：2021 | G2: 金额单位：万元
A3: 序号 | B3: 收入 | D3: 支出
B4: 项 目 | C4: 金额 | D4: 项 目 | E4: 合计 | F4: 一般公共预算财政拨款 | G4: 政府性基金预算财政拨款 | H4: 国有资本经营预算财政拨款
A5: 栏次 | B5: 1 | C5: 2 | D5: 3 | E5: 4 | F5: 5 | G5: 6 | H5: 7
A6: =ROW() -> 6 | B6: 一、一般公共预算财政拨款 | C6: =5727.19+256+2225.5 -> 8208.69 | D6: 一、一般公共服务支出 | E6: =F6+G6+H6 -> 524.30 | F6: 524.30 | G6: 0.00 | H6: 0.00
A7: 7 | B7: 二、政府性基金预算财政拨款 | C7: =160108.82 -> 160108.82 | D7: 二、外交支出 | E7: =F7+G7+H7 -> 0.00 | F7: 0.00 | G7: 0.00 | H7: 0.00
A8: 8 | B8: 三、国有资本经营预算财政拨款 | C8: 0.00 | D8: 三、国防支出 | E8: 0.00 | F8: 0.00 | G8: 0.00 | H8: 0.00
A9: 9 | D9: 四、公共安全支出 | E9: 0.00 | F9: 0.00 | G9: 0.00 | H9: 0.00
A10: 10 | D10: 五、教育支出 | E10: 0.00 | F10: 0.00 | G10: 0.00 | H10: 0.00
A11: 11 | D11: 六、科学技术支出 | E11: 0.00 | F11: 0.00 | G11: 0.00 | H11: 0.00
A12: 12 | D12: 七、文化旅游体育与传媒支出 | E12: 0.00 | F12: 0.00 | G12: 0.00 | H12: 0.00
A13: 13 | D13: 八、社会保障和就业支出 | E13: 236.71 | F13: 152.49 | G13: 84.22 | H13: 0.00
A14: 14 | D14: 九、社会保险基金支出 | E14: 0.00 | F14: 0.00 | G14: 0.00 | H14: 0.00
A15: 15 | D15: 十、卫生健康支出 | E15: 61.09 | F15: 61.09 | G15: 0.00 | H15: 0.00
A16: 16 | D16: 十一、节能环保支出 | E16: 2203.70 | F16: =2203.7 -> 2203.70 | G16: 0.00 | H16: 0.00
A17: 17 | D17: 十二、城乡社区支出 | E17: 165005.12 | F17: =3874.82+1105.7 -> 4980.52 | G17: 160024.60 | H17: 0.00
A18: 18 | D18: 十三、农林水支出 | E18: 50.00 | F18: 50.00 | G18: 0.00 | H18: 0.00
A19: 19 | D19: 十四、交通运输支出 | E19: 188.47 | F19: 188.47 | G19: 0.00 | H19: 0.00
A20: 20 | D20: 十五、资源勘探工业信息等支出 | E20: 0.00 | F20: 0.00 | G20: 0.00 | H20: 0.00
A21: 21 | D21: 十六、商业服务业等支出 | E21: 0.00 | F21: 0.00 | G21: 0.00 | H21: 0.00
A22: 22 | D22: 十七、金融支出 | E22: 0.00 | F22: 0.00 | G22: 0.00 | H22: 0.00
A23: 23 | D23: 十八、援助其他地区支出 | E23: 0.00 | F23: 0.00 | G23: 0.00 | H23: 0.00
A24: 24 | D24: 十九、自然资源海洋气象等支出 | E24: 0.00 | F24: 0.00 | G24: 0.00 | H24: 0.00
A25: 25 | D25: 二十、住房保障支出 | E25: 48.12 | F25: 48.12 | G25: 0.00 | H25: 0.00
A26: 26 | D26: 二十一、粮油物资储备支出 | E26: 0.00 | F26: 0.00 | G26: 0.00 | H26: 0.00
A27: 27 | D27: 二十二、国有资本经营预算支出 | E27: 0.00 | F27: 0.00 | G27: 0.00 | H27: 0.00
A28: 28 | D28: 二十三、灾害防治及应急管理支出 | E28: 0.00 | F28: 0.00 | G28: 0.00 | H28: 0.00
A29: 29 | D29: 二十四、预备费 | E29: 0.00 | F29: 0.00 | G29: 0.00 | H29: 0.00
A30: 30 | D30: 二十五、其他支出 | E30: 0.00 | F30: 0.00 | G30: 0.00 | H30: 0.00
A31: 31 | D31: 二十六、转移性支出 | E31: 0.00 | F31: 0.00 | G31: 0.00 | H31: 0.00
A32: 32 | D32: 二十七、债务还本支出 | E32: 0.00 | F32: 0.00 | G32: 0.00 | H32: 0.00
A33: 33 | D33: 二十八、债务付息支出 | E33: 0.00 | F33: 0.00 | G33: 0.00 | H33: 0.00
A34: 34 | D34: 二十九、债务发行费用支出 | E34: 0.00 | F34: 0.00 | G34: 0.00 | H34: 0.00
A35: 35 | B35: 本年收入合计 | C35: =C6+C7+C8 -> 168317.51 | D35: 本年支出合计 | E35: =F35+G35 -> 168317.51 | F35: =SUM(F6:F34) -> 8208.69 | G35: =SUM(G6:G34) -> 160108.82 | H35: =SUM(H6:H34) -> 0.00
A36: 36 | B36: 年初财政拨款结转和结余 | C36: 0.00 | D36: 年末结转和结余 | E36: 0.00 | F36: 0.00 | G36: 0.00 | H36: 0.00
A37: 37 | B37: 合计 | C37: =C35+C36 -> 168317.51 | D37: 合计 | E37: 168317.51 | F37: =F35+F36 -> 8208.69 | G37: =G35+G36 -> 160108.82 | H37: 0.00

Sheet 附表3-5
A1: 部门预算一般公共预算财政拨款支出表
A2: 部门编码及名称：[105]城建局 | E2: 预算年度：2021 | F2: 金额单位：万元
A3: 序号 | B3: 科目 | D3: 合计 | E3: 基本支出 | F3: 项目支出
B4: 功能分类科目编码 | C4: 科目名称
A5: 栏次 | B5: 1 | C5: 2 | D5: 3 | E5: 4 | F5: 5
A6: =ROW() -> 6 | C6: 合计 | D6: =E6+F6 -> 8208.69 | E6: =E7+E10+E16+E20+E23+E37+E41+E45 -> 883.29 | F6: =F7+F10+F16+F20+F23+F37+F41+F45 -> 7325.40
A7: =ROW() -> 7 | B7: 201 | C7: 一般公共服务支出 | D7: =E7+F7 -> 524.30 | E7: =E8 -> 0.00 | F7: =F8 -> 524.30
A8: =ROW() -> 8 | B8: 20103 | C8: 政府办公厅（室）及相关机构事务 | D8: 524.30 | E8: =E9 -> 0.00 | F8: =F9 -> 524.30
A9: 9 | B9: 2010302 | C9: 一般行政管理事务 | D9: 524.30 | E9: 0.00 | F9: 524.30
A10: 10 | B10: 208 | C10: 社会保障和就业支出 | D10: 152.49 | E10: =E11 -> 101.99 | F10: =F11 -> 50.50
A11: 11 | B11: 20805 | C11: 行政事业单位养老支出 | D11: 152.49 | E11: =E12+E13+E14+E15 -> 101.99 | F11: =F12+F13+F14+F15 -> 50.50
A12: 12 | B12: 2080502 | C12: 事业单位离退休 | D12: 5.73 | E12: =0.87+4.86 -> 5.73 | F12: 0.00
A13: 13 | B13: 2080505 | C13: 机关事业单位基本养老保险缴费支出★ | D13: 64.17 | E13: =9.35+35.73+19.09 -> 64.17 | F13: 0.00
A14: 14 | B14: 2080506 | C14: 机关事业单位职业年金缴费支出★ | D14: 32.09 | E14: =22.54+9.55 -> 32.09 | F14: 0.00
A15: 15 | B15: 2082602 | C15: 财政对城乡居民基本养老保险基金的补助 | D15: 50.50 | E15: 0.00 | F15: =0.6+30+19.9 -> 50.50
A16: =ROW() -> 16 | B16: 210 | C16: 卫生健康支出 | D16: =E16+F16 -> 61.09 | E16: =E17 -> 61.09 | F16: 0.00
A17: 17 | B17: 21011 | C17: 行政事业单位医疗 | D17: 61.09 | E17: =E18+E19 -> 61.09 | F17: 0.00
A18: 18 | B18: 2101101 | C18: 行政单位医疗 | D18: 8.76 | E18: 8.76 | F18: 0.00
A19: 19 | B19: 2101102 | C19: 事业单位医疗 | D19: 52.33 | E19: =33.49+17.89+0.95 -> 52.33 | F19: 0.00
A20: 20 | B20: 211 | C20: 节能环保支出 | D20: 2203.70 | E20: =E21 -> 0.00 | F20: =F21 -> 2203.70
A21: 21 | B21: 21103 | C21: 污染防治 | D21: 2203.70 | E21: =E22 -> 0.00 | F21: =F22 -> 2203.70
A22: 22 | B22: 2110301 | C22: 大气 | D22: 2203.70 | E22: 0.00 | F22: 2203.70
A23: 23 | B23: 212 | C23: 城乡社区支出 | D23: 4980.52 | E23: =E24+E29+E31+E33+E35 -> 483.62 | F23: =F24+F29+F31+F33+F35 -> 4496.90
A24: 24 | B24: 21201 | C24: 城乡社区管理事务 | D24: 2284.02 | E24: =E25+E26+E27+E28 -> 483.62 | F24: =F25+F26+F27+F28 -> 1800.40
A25: 25 | B25: 2120101 | C25: 行政运行 | D25: 483.62 | E25: =34.67+135.13+149.54+2.68+150.99+0.15+0.1+0.35+0.56+0.43+1.57+1.34+4.23+1.82+0.06 -> 483.62 | F25: 0.00
A26: =ROW() -> 26 | B26: 2120102 | C26: 一般行政管理事务 | D26: 95.70 | E26: 0.00 | F26: 95.70
A27: 27 | B27: 2120110 | C27: 执业资格注册、资质审查 | D27: 3.50 | E27: 0.00 | F27: 3.50
A28: 28 | B28: 2120199 | C28: 其他城乡社区管理事务支出 | D28: 1701.20 | E28: 0.00 | F28: =897.5+718.7+85 -> 1701.20
A29: 29 | B29: 21203 | C29: 城乡社区公共设施 | D29: 0.00 | E29: =E30 -> 0.00 | F29: 0.00
A30: 30 | B30: 2120399 | C30: 其他城乡社区公共设施支出 | D30: 0.00 | E30: 0.00 | F30: 0.00
A31: 31 | B31: 21205 | C31: 城乡社区环境卫生 | D31: 2550.00 | E31: 0.00 | F31: 2550.00
A32: =ROW() -> 32 | B32: 2120501 | C32: 城乡社区环境卫生 | D32: 2550.00 | E32: 0.00 | F32: 2550.00
A33: 33 | B33: 21206 | C33: 建设市场管理与监督 | D33: 10.00 | E33: 0.00 | F33: 10.00
A34: 34 | B34: 2120601 | C34: 建设市场管理与监督 | D34: 10.00 | E34: 0.00 | F34: 10.00
A35: 35 | B35: 21299 | C35: 其他城乡社区支出 | D35: 136.50 | E35: =E36 -> 0.00 | F35: 136.5
A36: 36 | B36: 2129999 | C36: 其他城乡社区支出 | D36: 136.50 | E36: =E37 -> 0.00 | F36: 136.5
A37: 37 | B37: 213 | C37: 农林水支出 | D37: 50.00 | E37: =E38 -> 0.00 | F37: =F38 -> 50.00
A38: 38 | B38: 21303 | C38: 水利 | D38: 50.00 | E38: =E40 -> 0.00 | F38: =F39+F40 -> 50.00
A39: 39 | B39: 2130306 | C39: 水利工程运行与维护 | D39: 20.00 | E39: 0.00 | F39: 20.00
A40: 40 | B40: 2130335 | C40: 农村人畜饮水 | D40: 30.00 | E40: 0.00 | F40: 30.00
A41: 41 | B41: 214 | C41: 交通运输支出 | D41: 188.47 | E41: =E42 -> 188.47 | F41: 0.00
A42: =ROW() -> 42 | B42: 21401 | C42: 公路水路运输 | D42: 188.47 | E42: =E43+E44 -> 188.47 | F42: 0.00
A43: 43 | B43: 2140106 | C43: 公路养护 | D43: 0.00 | E43: 0.00 | F43: 0.00
A44: 44 | B44: 2140199 | C44: 其他公路水路运输 | D44: 188.47 | E44: =4.95+57.67+54.24+69.48+0.3+0.22+0.84+0.72+0.05 -> 188.47 | F44: 0.00
A45: 45 | B45: 221 | C45: 住房保障支出 | D45: 48.12 | E45: =E46 -> 48.12 | F45: 0.00
A46: 46 | B46: 22102 | C46: 住房改革支出 | D46: 48.12 | E46: =E47 -> 48.12 | F46: 0.00
A47: 47 | B47: 2210201 | C47: 住房公积金 | D47: 48.12 | E47: =33.8+14.32 -> 48.12 | F47: 0.00

Sheet 附表3-6
A1: 部门预算一般公共预算财政拨款基本支出表
A2: 部门编码及名称：[105]城建局 | E2: 预算年度：2021 | F2: 金额单位：万元
A3: 序号 | B3: 科目 | D3: 基本支出
B4: 经济分类科目编码 | C4: 科目名称 | D4: 合计 | E4: 人员经费 | F4: 公用经费
A5: 栏次 | B5: 1 | C5: 2 | D5: 3 | E5: 4 | F5: 5
A6: =ROW() -> 6 | C6: 合计 | D6: =E6+F6 -> 883.29 | E6: =E7+E18+E30 -> 843.67 | F6: =F7+F18+F30 -> 39.62
A7: 7 | B7: 301 | C7: 工资福利支出 | D7: =E7+F7 -> 836.88 | E7: 836.88 | F7: 0.00
A8: 8 | B8: 30101 | C8: 基本工资 | D8: 192.80 | E8: =135.13+57.67 -> 192.80 | F8: 0.00
A9: 9 | B9: 30102 | C9: 津贴补贴★ | D9: 203.78 | E9: =149.54+54.24 -> 203.78 | F9: 0.00
A10: 10 | B10: 30103 | C10: 奖金 | D10: 2.68 | E10: 2.68 | F10: 0.00
A11: 11 | B11: 30107 | C11: 绩效工资 | D11: 220.47 | E11: =150.99+69.48 -> 220.47 | F11: 0.00
A12: 12 | B12: 30108 | C12: 机关事业单位基本养老保险缴费★ | D12: 64.17 | E12: =9.35+35.73+19.09 -> 64.17 | F12: 0.00
A13: 13 | B13: 30109 | C13: 职业年金缴费★ | D13: 32.09 | E13: =22.54+9.55 -> 32.09 | F13: 0.00
A14: 14 | B14: 30110 | C14: 城镇职工基本医疗保险缴费 | D14: 60.14 | E14: =33.49+17.89+8.76 -> 60.14 | F14: 0.00
A15: 15 | B15: 30112 | C15: 其他社会保障缴费★ | D15: 6.58 | E15: =0.15+0.1+0.35+0.56+0.43+1.57+1.34+0.3+0.22+0.84+0.72 -> 6.58 | F15: 0.00
A16: 16 | B16: 30113 | C16: 住房公积金 | D16: 48.12 | E16: =33.8+14.32 -> 48.12 | F16: 0.00
A17: 17 | B17: 30199 | C17: 其他工资福利支出 | D17: 6.05 | E17: =4.23+1.82 -> 6.05 | F17: 0.00
A18: 18 | B18: 302 | C18: 商品和服务支出 | D18: 39.62 | E18: 0.00 | F18: =34.67+4.95 -> 39.62
A19: 19 | B19: 30201 | C19: 办公费 | D19: 8.70 | E19: 0.00 | F19: =6.3+2.4 -> 8.70
A20: 20 | B20: 30207 | C20: 邮电费 | D20: 3.80 | E20: 0.00 | F20: 3.80
A21: 21 | B21: 30211 | C21: 差旅费 | D21: 3.80 | E21: 0.00 | F21: 3.80
A22: 22 | B22: 30213 | C22: 维修(护)费 | D22: 0.50 | E22: 0.00 | F22: 0.50
A23: 23 | B23: 30214 | C23: 租赁费 | D23: 3.72 | E23: 0.00 | F23: 3.72
A24: 24 | B24: 30215 | C24: 会议费 | D24: 0.50 | E24: 0.00 | F24: 0.50
A25: 25 | B25: 30216 | C25: 培训费 | D25: 1.50 | E25: 0.00 | F25: 1.50
A26: 26 | B26: 30217 | C26: 公务接待费 | D26: 2.50 | E26: 0.00 | F26: 2.50
A27: 27 | B27: 30228 | C27: 工会经费 | D27: 8.02 | E27: 0.00 | F27: =5.63+2.39 -> 8.02
A28: 28 | B28: 30231 | C28: 公务用车运行维护费★ | D28: 6.00 | E28: 0.00 | F28: 6.00
A29: 29 | B29: 30299 | C29: 其他商品和服务支出 | D29: 0.58 | E29: 0.00 | F29: =0.42+0.16 -> 0.58
A30: 30 | B30: 303 | C30: 对个人和家庭的补助 | D30: 6.79 | E30: =E31+E32+E33 -> 6.79 | F30: 0.00
A31: 31 | B31: 30302 | C31: 退休费 | D31: 5.73 | E31: =0.87+4.86 -> 5.73 | F31: 0.00
A32: 32 | B32: 30307 | C32: 医疗费补助 | D32: 0.95 | E32: 0.95 | F32: 0.00
A33: 33 | B33: 30309 | C33: 奖励金 | D33: 0.11 | E33: =0.06+0.05 -> 0.11 | F33: 0.00

Sheet 附表3-7
A1: 部门预算政府基金预算财政拨款支出表
A2: 部门编码及名称：[105]城建局 | E2: 预算年度：2021 | F2: 金额单位：万元
A3: 序号 | B3: 科目 | D3: 合计 | E3: 基本支出 | F3: 项目支出
B4: 功能分类科目编码 | C4: 科目名称
A5: 栏次 | B5: 1 | C5: 2 | D5: 3 | E5: 4 | F5: 5
A6: =ROW() -> 6 | C6: 合计 | D6: =E6+F6 -> 160,108.82 | E6: 0.00 | F6: =F7+F11+F32+F14 -> 160,108.82
A7: 7 | B7: 208 | C7: 社会保障和就业支出 | D7: =E7+F7 -> 84.22 | E7: 0.00 | F7: =F8 -> 84.22
A8: 8 | B8: 20822 | C8: 大中型水库移民后期扶持基金支出 | D8: 84.22 | E8: 0.00 | F8: =F9+F10 -> 84.22
A9: 9 | B9: 2082201 | C9: 移民补助 | D9: 53.76 | E9: 0.00 | F9: 53.76
A10: 10 | B10: 2082202 | C10: 基础设施建设和经济发展 | D10: 30.46 | E10: 0.00 | F10: 30.46
A11: 11 | B11: 211 | C11: 节能环保支出 | D11: 0.00 | E11: =E12 -> 0.00 | F11: =F12 -> 0.00
A12: =ROW() -> 12 | B12: 21103 | C12: 污染防治 | D12: 0.00 | E12: =E13 -> 0.00 | F12: 0.00
A13: 13 | B13: 2110301 | C13: 大气 | D13: 0.00 | E13: 0.00 | F13: 0.00
A14: 14 | B14: 212 | C14: 城乡社区支出 | D14: 160,024.60 | E14: 0.00 | F14: =F15+F18+F20+F22+F28+F30 -> 160,024.60
A15: 15 | B15: 21201 | C15: 城乡社区管理事务 | D15: 0.00 | E15: =E16+E17 -> 0.00 | F15: =F16+F17 -> 0.00
A16: 16 | B16: 2120102 | C16: 一般行政管理事务 | D16: =E16+F16 -> 0.00 | E16: 0.00 | F16: 0.00
A17: 17 | B17: 2120110 | C17: 职业资格注册、资质审查 | D17: 0.00 | E17: 0.00 | F17: 0.00
A18: 18 | B18: 21205 | C18: 城乡社区环境卫生 | D18: 0.00 | E18: 0.00 | F18: =F19 -> 0.00
A19: 19 | B19: 2120501 | C19: 城乡社区环境卫生 | D19: 0.00 | E19: 0.00 | F19: 0.00
A20: 20 | B20: 21206 | C20: 建设市场管理与监督 | D20: 0.00 | E20: 0.00 | F20: =F21 -> 0.00
A21: 21 | B21: 2120601 | C21: 建设市场管理与监督 | D21: 0.00 | E21: 0.00 | F21: 0.00
A22: =ROW() -> 22 | B22: 21208 | C22: 国有土地使用权出让收入安排的支出 | D22: 160,024.60 | E22: 0.00 | F22: =F23+F24+F25+F26+F27 -> 160,024.60
A23: 23 | B23: 2120801 | C23: 征地和拆迁补偿支出 | D23: 130,713.30 | E23: 0.00 | F23: 130,713.30
A24: 24 | B24: 2120803 | C24: 城市建设支出 | D24: 15,471.00 | E24: 0.00 | F24: 15,471.00
A25: 25 | B25: 2120804 | C25: 农村基础设施建设支出 | D25: 961.50 | E25: 0.00 | F25: 961.50
A26: 26 | B26: 2120805 | C26: 绿化租地费 | D26: 1,022.20 | E26: 0.00 | F26: 1,022.20
A27: 27 | B27: 2120899 | C27: 其他国有土地使用权出让收入安排的支出 | D27: 11,856.60 | E27: 0.00 | F27: 11,856.60
A28: 28 | B28: 21213 | C28: 城市基础设施配套费安排的支出 | D28: 0.00 | E28: 0.00 | F28: =F29 -> 0.00
A29: 29 | B29: 2121302 | C29: 城市环境卫生 | D29: 0.00 | E29: 0.00 | F29: 0.00
A30: 30 | B30: 21299 | C30: 其他城乡社区支出 | D30: 0.00 | E30: 0.00 | F30: =F31 -> 0.00
A31: 31 | B31: 2129999 | C31: 其他城乡社区支出 | D31: 0.00 | E31: 0.00 | F31: 0.00
A32: 32 | B32: 213 | C32: 农林水支出 | D32: 0.00 | E32: 0.00 | F32: =F33 -> 0.00
A33: 33 | B33: 21303 | C33: 水利 | D33: 0.00 | E33: =E34+E35 -> 0.00 | F33: =F34+F35 -> 0.00
A34: 34 | B34: 2130306 | C34: 水利工程运行与维护 | D34: 0.00 | E34: 0.00 | F34: 0.00
A35: 35 | B35: 2130335 | C35: 农村人畜饮水 | D35: 0.00 | E35: 0.00 | F35: 0.00

Sheet 附表3-8
A1: 部门预算国有资本经营预算财政拨款支出表
A2: 部门编码及名称：[105]城建局 | E2: 预算年度：2021 | F2: 金额单位：万元
A3: 序号 | B3: 科目 | D3: 合计 | E3: 基本支出 | F3: 项目支出
B4: 功能分类科目编码 | C4: 科目名称
A5: 栏次
A16: 备注：此表无数据

Sheet 附表3-9
A1: 部门预算财政拨款“三公”经费支出表
A2: 部门编码及名称：[105]城建局 | F2: 预算年度：2021 | G2: 金额单位：万元
A3: 序号 | B3: 项 目 | C3: 资金来源
C4: 合计 | D4: 一般公共预算财政拨款 | E4: 政府性基金财政拨款 | F4: 国有资本经营预算财政拨款 | G4: 财政专户核拨资金
A5: 栏次 | B5: 1 | C5: 2 | D5: 3 | E5: 4 | F5: 5 | G5: 6
A6: =ROW() -> 6 | B6: 合计
A7: 7 | B7: “三公”经费小计 | C7: 8.50 | D7: 8.50 | E7: 0.00 | F7: 0.00 | G7: 0.00
A8: 8 | B8: 一、因公出国（境）费 | C8: 0.00 | D8: 0.00 | E8: 0.00 | F8: 0.00 | G8: 0.00
A9: 9 | B9: 其中：教学科研人员因公出国（境）费
A10: 10 | B10: 其他因公出国（境）费
A11: 11 | B11: 二、公务用车购置及运维费 | C11: 6.00 | D11: 6.00 | E11: 0.00 | F11: 0.00 | G11: 0.00
A12: 12 | B12: 其中：公务用车购置费
A13: 13 | B13: 公务用车运行维护费 | C13: 6.00 | D13: 6.00 | E13: 0.00 | F13: 0.00 | G13: 0.00
A14: 14 | B14: 三、公务接待费 | C14: 2.50 | D14: 2.50 | E14: 0.00 | F14: 0.00 | G14: 0.00
